[Event "Titled Tuesday Blitz April 18 Early 2023"]
[White "Federzoni, Enzo"]
[Black "Costachi, Mihnea"]
[WhiteFideId "2173301"]
[BlackFideId "1217518"]
[WhiteElo "2039"]
[BlackElo "2456"]
[Result "0-1"]
[Round "01"]
[TimeControl "180+2"]
[Date "2023.04.18"]
[WhiteClock "0:00:28"]
[BlackClock "0:01:02"]

1. e4 {[%clk 0:02:56]}  c5 {[%clk 0:02:47]} 2. Nf3 {[%clk 0:02:56]}  d6 {[%clk 0:02:40]} 3. Bb5+ {[%clk 0:02:50]}  Bd7 {[%clk 0:02:39]} 4. Bxd7+ {[%clk 0:02:49]}  Nxd7 {[%clk 0:02:37]} 5. O-O {[%clk 0:02:49]}  g6 {[%clk 0:02:35]} 6. c3 {[%clk 0:02:49]}  Bg7 {[%clk 0:02:35]} 7. d4 {[%clk 0:02:49]}  cxd4 {[%clk 0:02:36]} 8. cxd4 {[%clk 0:02:49]}  Ngf6 {[%clk 0:02:36]} 9. Nc3 {[%clk 0:02:49]}  O-O {[%clk 0:02:36]} 10. Qe2 {[%clk 0:02:48]}  Qa5 {[%clk 0:02:34]} 11. h3 {[%clk 0:02:44]}  Rfc8 {[%clk 0:02:32]} 12. e5 {[%clk 0:02:34]}  Nd5 {[%clk 0:02:30]} 13. e6 {[%clk 0:02:27]}  Nf8 {[%clk 0:02:22]} 14. exf7+ {[%clk 0:02:24]}  Kxf7 {[%clk 0:02:23]} 15. Bd2 {[%clk 0:02:09]}  Nxc3 {[%clk 0:02:21]} 16. bxc3 {[%clk 0:02:04]}  Rc7 {[%clk 0:02:07]} 17. Rfe1 {[%clk 0:02:01]}  Kg8 {[%clk 0:02:07]} 18. Qe4 {[%clk 0:01:46]}  Qf5 {[%clk 0:02:06]} 19. Qxf5 {[%clk 0:01:39]}  gxf5 {[%clk 0:02:06]} 20. Rab1 {[%clk 0:01:39]}  Ng6 {[%clk 0:01:58]} 21. Ng5 {[%clk 0:01:37]}  e5 {[%clk 0:01:56]} 22. dxe5 {[%clk 0:01:32]}  dxe5 {[%clk 0:01:56]} 23. Ne6 {[%clk 0:01:30]}  Rd7 {[%clk 0:01:56]} 24. Nxg7 {[%clk 0:01:29]}  Kxg7 {[%clk 0:01:57]} 25. Be3 {[%clk 0:01:24]}  b6 {[%clk 0:01:58]} 26. a4 {[%clk 0:01:21]}  Rc8 {[%clk 0:01:50]} 27. Rec1 {[%clk 0:01:15]}  f4 {[%clk 0:01:50]} 28. Bxb6 {[%clk 0:01:13]}  axb6 {[%clk 0:01:49]} 29. Rxb6 {[%clk 0:01:14]}  Rc4 {[%clk 0:01:41]} 30. a5 {[%clk 0:01:14]}  Rdc7 {[%clk 0:01:33]} 31. a6 {[%clk 0:01:13]}  Rxc3 {[%clk 0:01:32]} 32. Rxc3 {[%clk 0:01:13]}  Rxc3 {[%clk 0:01:33]} 33. a7 {[%clk 0:01:14]}  Ra3 {[%clk 0:01:31]} 34. Rb7+ {[%clk 0:01:14]}  Kf6 {[%clk 0:01:30]} 35. g4 {[%clk 0:01:12]}  fxg3 {[%clk 0:01:25]} 36. fxg3 {[%clk 0:01:13]}  h5 {[%clk 0:01:26]} 37. Kf2 {[%clk 0:01:09]}  e4 {[%clk 0:01:25]} 38. g4 {[%clk 0:01:06]}  hxg4 {[%clk 0:01:24]} 39. hxg4 {[%clk 0:01:07]}  Ne5 {[%clk 0:01:23]} 40. Ke2 {[%clk 0:00:52]}  Nxg4 {[%clk 0:01:18]} 41. Rb4 {[%clk 0:00:49]}  Kf5 {[%clk 0:01:16]} 42. Rb7 {[%clk 0:00:47]}  Ra2+ {[%clk 0:01:15]} 43. Ke1 {[%clk 0:00:46]}  Kf4 {[%clk 0:01:15]} 44. Rb3 {[%clk 0:00:45]}  Rxa7 {[%clk 0:01:14]} 45. Kf1 {[%clk 0:00:45]}  Ra1+ {[%clk 0:01:13]} 46. Ke2 {[%clk 0:00:44]}  Ra2+ {[%clk 0:01:14]} 47. Kf1 {[%clk 0:00:44]}  e3 {[%clk 0:01:14]} 48. Rb8 {[%clk 0:00:42]}  Kg3 {[%clk 0:01:11]} 49. Rb3 {[%clk 0:00:36]}  Kf3 {[%clk 0:01:09]} 50. Rb1 {[%clk 0:00:34]}  Rg2 {[%clk 0:01:03]} 51. Rb3 {[%clk 0:00:30]}  Rh2 {[%clk 0:01:02]} 52. Kg1 {[%clk 0:00:29]}  Ra2 {[%clk 0:01:02]} 53. Kh1 {[%clk 0:00:28]}  Ra1+ {[%clk 0:01:02]} 54. Rb1 {[%clk 0:00:28]}  Rxb1# {[%clk 0:01:02]} 0-1


[Site "https://www.chess.com"]

[Event "Titled Tuesday Blitz April 18 Early 2023"]
[White "Movahed, Sina"]
[Black "Bas Mas, Jose Joaquin"]
[WhiteFideId "42520835"]
[BlackFideId "22219064"]
[WhiteElo "2225"]
[BlackElo "2233"]
[Result "1-0"]
[Round "01"]
[TimeControl "180+2"]
[Date "2023.04.18"]
[WhiteClock "0:01:34"]
[BlackClock "0:00:56"]

1. e4 {[%clk 0:03:00]}  e6 {[%clk 0:02:59]} 2. d4 {[%clk 0:03:00]}  d5 {[%clk 0:02:59]} 3. Nd2 {[%clk 0:02:58]}  Nf6 {[%clk 0:02:57]} 4. e5 {[%clk 0:02:58]}  Nfd7 {[%clk 0:02:58]} 5. Ngf3 {[%clk 0:02:42]}  c5 {[%clk 0:02:57]} 6. c3 {[%clk 0:02:41]}  Nc6 {[%clk 0:02:58]} 7. Nb3 {[%clk 0:02:40]}  a5 {[%clk 0:02:45]} 8. a4 {[%clk 0:02:37]}  cxd4 {[%clk 0:02:40]} 9. cxd4 {[%clk 0:02:35]}  Qb6 {[%clk 0:02:40]} 10. Bb5 {[%clk 0:02:34]}  Bb4+ {[%clk 0:02:38]} 11. Bd2 {[%clk 0:02:32]}  O-O {[%clk 0:02:30]} 12. O-O {[%clk 0:02:31]}  f6 {[%clk 0:02:25]} 13. Bxb4 {[%clk 0:02:27]}  axb4 {[%clk 0:02:18]} 14. exf6 {[%clk 0:02:25]}  Nxf6 {[%clk 0:02:18]} 15. Re1 {[%clk 0:02:26]}  Ne4 {[%clk 0:02:11]} 16. Rc1 {[%clk 0:02:24]}  Bd7 {[%clk 0:02:07]} 17. Nc5 {[%clk 0:02:19]}  Nxc5 {[%clk 0:01:54]} 18. Rxc5 {[%clk 0:02:07]}  Rf6 {[%clk 0:01:45]} 19. Bxc6 {[%clk 0:02:00]}  bxc6 {[%clk 0:01:42]} 20. Ne5 {[%clk 0:01:57]}  Be8 {[%clk 0:01:41]} 21. b3 {[%clk 0:01:53]}  Ra7 {[%clk 0:01:37]} 22. Qd2 {[%clk 0:01:51]}  h6 {[%clk 0:01:23]} 23. h3 {[%clk 0:01:49]}  Ra5 {[%clk 0:01:11]} 24. Rxa5 {[%clk 0:01:43]}  Qxa5 {[%clk 0:01:11]} 25. Rc1 {[%clk 0:01:44]}  Qb6 {[%clk 0:01:09]} 26. Rc5 {[%clk 0:01:45]}  Qb7 {[%clk 0:01:01]} 27. a5 {[%clk 0:01:39]}  Bd7 {[%clk 0:00:57]} 28. a6 {[%clk 0:01:35]}  Qxa6 {[%clk 0:00:56]} 29. Nxd7 {[%clk 0:01:34]} 1-0


[Site "https://www.chess.com"]

[Event "Titled Tuesday Blitz April 18 Early 2023"]
[White "Goltsev, Dmitry"]
[Black "Rios Escobar, Adan"]
[WhiteFideId "24176710"]
[BlackFideId "3403645"]
[WhiteElo "2336"]
[BlackElo "2436"]
[Result "1-0"]
[Round "01"]
[TimeControl "180+2"]
[Date "2023.04.18"]
[WhiteClock "0:02:27"]
[BlackClock "0:00:02"]

1. e4 {[%clk 0:02:59]}  c5 {[%clk 0:02:59]} 2. Nf3 {[%clk 0:03:00]}  d6 {[%clk 0:02:56]} 3. d4 {[%clk 0:03:00]}  cxd4 {[%clk 0:02:53]} 4. Nxd4 {[%clk 0:03:01]}  Nf6 {[%clk 0:02:54]} 5. Nc3 {[%clk 0:03:02]}  a6 {[%clk 0:02:54]} 6. Be3 {[%clk 0:03:00]}  e5 {[%clk 0:02:49]} 7. Nb3 {[%clk 0:03:01]}  Be7 {[%clk 0:02:48]} 8. Nd5 {[%clk 0:03:00]}  Nbd7 {[%clk 0:02:45]} 9. f3 {[%clk 0:02:58]}  Nxd5 {[%clk 0:02:31]} 10. exd5 {[%clk 0:02:59]}  O-O {[%clk 0:02:31]} 11. c4 {[%clk 0:02:59]}  f5 {[%clk 0:02:27]} 12. Be2 {[%clk 0:02:59]}  Bh4+ {[%clk 0:02:26]} 13. g3 {[%clk 0:03:00]}  Bg5 {[%clk 0:02:26]} 14. Bf2 {[%clk 0:03:00]}  e4 {[%clk 0:02:06]} 15. f4 {[%clk 0:02:57]}  Bf6 {[%clk 0:02:06]} 16. Nd4 {[%clk 0:02:57]}  Qa5+ {[%clk 0:01:58]} 17. Qd2 {[%clk 0:02:55]}  Qxd2+ {[%clk 0:01:50]} 18. Kxd2 {[%clk 0:02:56]}  g6 {[%clk 0:01:32]} 19. b4 {[%clk 0:02:52]}  Rf7 {[%clk 0:01:27]} 20. a3 {[%clk 0:02:41]}  b5 {[%clk 0:01:22]} 21. cxb5 {[%clk 0:02:40]}  Nb6 {[%clk 0:01:16]} 22. Rac1 {[%clk 0:02:38]}  axb5 {[%clk 0:01:04]} 23. Nxb5 {[%clk 0:02:39]}  Na4 {[%clk 0:00:52]} 24. Nxd6 {[%clk 0:02:38]}  Rd7 {[%clk 0:00:50]} 25. Rxc8+ {[%clk 0:02:34]}  Rxc8 {[%clk 0:00:50]} 26. Nxc8 {[%clk 0:02:35]}  Rxd5+ {[%clk 0:00:50]} 27. Kc2 {[%clk 0:02:34]}  Nb2 {[%clk 0:00:34]} 28. Nb6 {[%clk 0:02:32]}  Rd8 {[%clk 0:00:32]} 29. Rb1 {[%clk 0:02:32]}  Nd3 {[%clk 0:00:31]} 30. Bxd3 {[%clk 0:02:32]}  Rxd3 {[%clk 0:00:27]} 31. Rb3 {[%clk 0:02:31]}  Rd6 {[%clk 0:00:12]} 32. Bc5 {[%clk 0:02:30]}  Re6 {[%clk 0:00:10]} 33. a4 {[%clk 0:02:30]}  Kf7 {[%clk 0:00:08]} 34. a5 {[%clk 0:02:27]}  Be7 {[%clk 0:00:08]} 35. a6 {[%clk 0:02:25]}  Bxc5 {[%clk 0:00:07]} 36. bxc5 {[%clk 0:02:26]}  e3 {[%clk 0:00:07]} 37. a7 {[%clk 0:02:27]}  e2 {[%clk 0:00:07]} 38. Rb1 {[%clk 0:02:27]}  e1=Q {[%clk 0:00:05]} 39. Rxe1 {[%clk 0:02:27]}  Rxe1 {[%clk 0:00:05]} 40. a8=Q {[%clk 0:02:28]}  Re2+ {[%clk 0:00:06]} 41. Kd3 {[%clk 0:02:28]}  Rxh2 {[%clk 0:00:07]} 42. c6 {[%clk 0:02:27]}  Rg2 {[%clk 0:00:06]} 43. c7 {[%clk 0:02:27]}  Rxg3+ {[%clk 0:00:07]} 44. Kd4 {[%clk 0:02:28]}  Rg4 {[%clk 0:00:06]} 45. Ke5 {[%clk 0:02:27]}  Kg7 {[%clk 0:00:05]} 46. c8=Q {[%clk 0:02:28]}  Kh6 {[%clk 0:00:05]} 47. Qf8+ {[%clk 0:02:28]}  Kh5 {[%clk 0:00:06]} 48. Qa1 {[%clk 0:02:28]}  g5 {[%clk 0:00:04]} 49. Qh1+ {[%clk 0:02:28]}  Rh4 {[%clk 0:00:03]} 50. Qf7+ {[%clk 0:02:26]}  Kh6 {[%clk 0:00:02]} 51. Qxh4+ {[%clk 0:02:25]}  gxh4 {[%clk 0:00:02]} 52. Qf6+ {[%clk 0:02:26]}  Kh5 {[%clk 0:00:02]} 53. Qg5# {[%clk 0:02:27]} 1-0


[Site "https://www.chess.com"]

[Event "Titled Tuesday Blitz April 18 Early 2023"]
[White "littlepillow2010"]
[Black "Kukhmazov, Arsen"]
[BlackFideId "24108260"]
[WhiteElo "2435"]
[BlackElo "2396"]
[Result "0-1"]
[Round "01"]
[TimeControl "180+2"]
[Date "2023.04.18"]
[WhiteClock "0:00:01"]
[BlackClock "0:01:25"]

1. e4 {[%clk 0:02:59]}  e5 {[%clk 0:02:41]} 2. Nf3 {[%clk 0:02:58]}  Nc6 {[%clk 0:02:41]} 3. Bb5 {[%clk 0:02:58]}  a6 {[%clk 0:02:40]} 4. Ba4 {[%clk 0:02:58]}  Nf6 {[%clk 0:02:41]} 5. O-O {[%clk 0:02:58]}  Nxe4 {[%clk 0:02:41]} 6. Re1 {[%clk 0:02:49]}  Nc5 {[%clk 0:02:41]} 7. Bxc6 {[%clk 0:02:41]}  dxc6 {[%clk 0:02:42]} 8. Nxe5 {[%clk 0:02:39]}  Be7 {[%clk 0:02:41]} 9. d4 {[%clk 0:02:36]}  Ne6 {[%clk 0:02:41]} 10. c3 {[%clk 0:02:36]}  O-O {[%clk 0:02:40]} 11. Qd3 {[%clk 0:02:14]}  a5 {[%clk 0:02:25]} 12. Nd2 {[%clk 0:02:07]}  a4 {[%clk 0:02:19]} 13. Ndf3 {[%clk 0:01:47]}  Bf6 {[%clk 0:01:49]} 14. Ng4 {[%clk 0:01:32]}  b6 {[%clk 0:01:50]} 15. Nxf6+ {[%clk 0:01:28]}  Qxf6 {[%clk 0:01:51]} 16. Qe4 {[%clk 0:01:28]}  Bb7 {[%clk 0:01:50]} 17. Ne5 {[%clk 0:00:45]}  Rfd8 {[%clk 0:01:46]} 18. Nxc6 {[%clk 0:00:24]}  Kh8 {[%clk 0:01:45]} 19. d5 {[%clk 0:00:21]}  Bxc6 {[%clk 0:01:41]} 20. dxc6 {[%clk 0:00:19]}  Nc5 {[%clk 0:01:39]} 21. Qf3 {[%clk 0:00:07]}  Qxf3 {[%clk 0:01:39]} 22. gxf3 {[%clk 0:00:08]}  Ne6 {[%clk 0:01:27]} 23. Be3 {[%clk 0:00:05]}  Rd6 {[%clk 0:01:26]} 24. Rad1 {[%clk 0:00:04]}  Rxc6 {[%clk 0:01:27]} 25. Rd7 {[%clk 0:00:05]}  Kg8 {[%clk 0:01:28]} 26. f4 {[%clk 0:00:03]}  g6 {[%clk 0:01:27]} 27. Red1 {[%clk 0:00:04]}  Kf8 {[%clk 0:01:27]} 28. Kg2 {[%clk 0:00:04]}  Ke8 {[%clk 0:01:27]} 29. Kf3 {[%clk 0:00:04]}  a3 {[%clk 0:01:26]} 30. bxa3 {[%clk 0:00:03]}  Rxc3 {[%clk 0:01:26]} 31. R1d3 {[%clk 0:00:02]}  Raxa3 {[%clk 0:01:25]} 32. Rxc3 {[%clk 0:00:03]}  Rxc3 {[%clk 0:01:26]} 33. Rd2 {[%clk 0:00:03]}  c5 {[%clk 0:01:24]} 34. h4 {[%clk 0:00:03]}  b5 {[%clk 0:01:25]} 35. Kg4 {[%clk 0:00:03]}  h5+ {[%clk 0:01:24]} 36. Kf3 {[%clk 0:00:03]}  b4 {[%clk 0:01:25]} 37. Rd5 {[%clk 0:00:02]}  c4 {[%clk 0:01:23]} 38. Rb5 {[%clk 0:00:02]}  Nd4+ {[%clk 0:01:24]} 39. Kg3 {[%clk 0:00:01]}  Nxb5 {[%clk 0:01:25]} 0-1


[Site "https://www.chess.com"]

[Event "Titled Tuesday Blitz April 18 Early 2023"]
[White "Ashraf, Artin"]
[Black "Wahedi, Ahmad Siar"]
[WhiteFideId "22514805"]
[BlackFideId "4651260"]
[WhiteElo "2188"]
[BlackElo "2251"]
[Result "1-0"]
[Round "01"]
[TimeControl "180+2"]
[Date "2023.04.18"]
[WhiteClock "0:00:05"]
[BlackClock "0:00:20"]

1. d4 {[%clk 0:02:59]}  e6 {[%clk 0:02:57]} 2. Nc3 {[%clk 0:02:55]}  d5 {[%clk 0:02:56]} 3. Bf4 {[%clk 0:02:53]}  Nf6 {[%clk 0:02:54]} 4. Nb5 {[%clk 0:02:53]}  Na6 {[%clk 0:02:53]} 5. e3 {[%clk 0:02:51]}  c6 {[%clk 0:02:52]} 6. Nc3 {[%clk 0:02:51]}  Nb8 {[%clk 0:02:50]} 7. Nf3 {[%clk 0:02:47]}  b6 {[%clk 0:02:48]} 8. Ne5 {[%clk 0:02:19]}  a5 {[%clk 0:02:47]} 9. Qf3 {[%clk 0:01:52]}  Be7 {[%clk 0:02:43]} 10. Bd3 {[%clk 0:01:44]}  Ba6 {[%clk 0:02:40]} 11. O-O {[%clk 0:01:40]}  O-O {[%clk 0:02:34]} 12. Rad1 {[%clk 0:01:35]}  Bxd3 {[%clk 0:02:20]} 13. Rxd3 {[%clk 0:01:33]}  b5 {[%clk 0:02:18]} 14. Ne2 {[%clk 0:01:17]}  Ne4 {[%clk 0:02:16]} 15. Qh3 {[%clk 0:01:12]}  f5 {[%clk 0:01:54]} 16. f3 {[%clk 0:01:01]}  Nf6 {[%clk 0:01:51]} 17. Bg5 {[%clk 0:01:00]}  Nfd7 {[%clk 0:01:34]} 18. Bf4 {[%clk 0:00:50]}  Nxe5 {[%clk 0:01:27]} 19. Bxe5 {[%clk 0:00:49]}  Bd6 {[%clk 0:01:27]} 20. Qg3 {[%clk 0:00:40]}  Bxe5 {[%clk 0:01:27]} 21. Qxe5 {[%clk 0:00:40]}  Qf6 {[%clk 0:01:19]} 22. Qc7 {[%clk 0:00:25]}  Qf7 {[%clk 0:01:09]} 23. Qd6 {[%clk 0:00:23]}  Ra7 {[%clk 0:01:05]} 24. Nf4 {[%clk 0:00:21]}  Re8 {[%clk 0:01:05]} 25. Rc3 {[%clk 0:00:21]}  Rd7 {[%clk 0:01:04]} 26. Qe5 {[%clk 0:00:20]}  a4 {[%clk 0:01:00]} 27. Nd3 {[%clk 0:00:19]}  Qf6 {[%clk 0:00:59]} 28. Qg3 {[%clk 0:00:17]}  Rb7 {[%clk 0:00:53]} 29. Ne5 {[%clk 0:00:16]}  Rb6 {[%clk 0:00:50]} 30. Rd1 {[%clk 0:00:16]}  g6 {[%clk 0:00:46]} 31. Rc5 {[%clk 0:00:14]}  Kg7 {[%clk 0:00:45]} 32. Rd3 {[%clk 0:00:14]}  Re7 {[%clk 0:00:43]} 33. Rdc3 {[%clk 0:00:12]}  Rc7 {[%clk 0:00:43]} 34. Nd3 {[%clk 0:00:12]}  Qe7 {[%clk 0:00:36]} 35. Nb4 {[%clk 0:00:09]}  Kf7 {[%clk 0:00:35]} 36. Qe5 {[%clk 0:00:08]}  Nd7 {[%clk 0:00:29]} 37. Qxc7 {[%clk 0:00:07]}  Qxc5 {[%clk 0:00:20]} 38. dxc5 {[%clk 0:00:05]} 1-0


[Site "https://www.chess.com"]

[Event "Titled Tuesday Blitz April 18 Early 2023"]
[White "Harriott, Tyrell"]
[Black "Fier, Alexandr"]
[WhiteFideId "2086484"]
[BlackFideId "2107139"]
[WhiteElo "2107"]
[BlackElo "2610"]
[Result "0-1"]
[Round "01"]
[TimeControl "180+2"]
[Date "2023.04.18"]
[WhiteClock "0:01:36"]
[BlackClock "0:01:14"]

1. d4 {[%clk 0:03:00]}  Nf6 {[%clk 0:02:59]} 2. e3 {[%clk 0:03:01]}  c5 {[%clk 0:02:55]} 3. f4 {[%clk 0:03:01]}  cxd4 {[%clk 0:02:53]} 4. exd4 {[%clk 0:03:02]}  g6 {[%clk 0:02:53]} 5. Nf3 {[%clk 0:03:00]}  Bg7 {[%clk 0:02:54]} 6. Bd3 {[%clk 0:03:01]}  O-O {[%clk 0:02:54]} 7. f5 {[%clk 0:03:01]}  Nc6 {[%clk 0:02:54]} 8. O-O {[%clk 0:02:59]}  d6 {[%clk 0:02:53]} 9. fxg6 {[%clk 0:02:59]}  fxg6 {[%clk 0:02:51]} 10. Qe2 {[%clk 0:02:57]}  Bg4 {[%clk 0:02:46]} 11. c3 {[%clk 0:02:57]}  e5 {[%clk 0:02:47]} 12. dxe5 {[%clk 0:02:53]}  Nxe5 {[%clk 0:02:43]} 13. Nbd2 {[%clk 0:02:49]}  Nxd3 {[%clk 0:02:43]} 14. Qxd3 {[%clk 0:02:49]}  Kh8 {[%clk 0:02:43]} 15. Nd4 {[%clk 0:02:47]}  Qa5 {[%clk 0:02:25]} 16. N2b3 {[%clk 0:02:46]}  Qd5 {[%clk 0:02:22]} 17. Qg3 {[%clk 0:02:44]}  Bd7 {[%clk 0:02:12]} 18. Qh4 {[%clk 0:02:32]}  Qe4 {[%clk 0:01:50]} 19. Bg5 {[%clk 0:02:24]}  Qxh4 {[%clk 0:01:50]} 20. Bxh4 {[%clk 0:02:25]}  Ne4 {[%clk 0:01:49]} 21. Rfe1 {[%clk 0:02:19]}  d5 {[%clk 0:01:49]} 22. Nc5 {[%clk 0:02:13]}  Nxc5 {[%clk 0:01:45]} 23. Be7 {[%clk 0:02:11]}  Rfc8 {[%clk 0:01:43]} 24. Bxc5 {[%clk 0:02:10]}  Rxc5 {[%clk 0:01:43]} 25. Re7 {[%clk 0:02:11]}  Rd8 {[%clk 0:01:29]} 26. Rae1 {[%clk 0:02:06]}  Rcc8 {[%clk 0:01:25]} 27. Ne6 {[%clk 0:01:57]}  Bxe6 {[%clk 0:01:24]} 28. R1xe6 {[%clk 0:01:58]}  d4 {[%clk 0:01:23]} 29. Rxb7 {[%clk 0:01:48]}  dxc3 {[%clk 0:01:21]} 30. Ree7 {[%clk 0:01:48]}  c2 {[%clk 0:01:20]} 31. Rbc7 {[%clk 0:01:43]}  c1=Q+ {[%clk 0:01:17]} 32. Rxc1 {[%clk 0:01:43]}  Rxc1+ {[%clk 0:01:18]} 33. Kf2 {[%clk 0:01:43]}  Bxb2 {[%clk 0:01:16]} 34. h3 {[%clk 0:01:42]}  Rc2+ {[%clk 0:01:16]} 35. Kf3 {[%clk 0:01:42]}  Rf8+ {[%clk 0:01:15]} 36. Ke4 {[%clk 0:01:41]}  Rxg2 {[%clk 0:01:15]} 37. Ke3 {[%clk 0:01:40]}  Rg3+ {[%clk 0:01:13]} 38. Kd2 {[%clk 0:01:39]}  Rxh3 {[%clk 0:01:14]} 39. Rxa7 {[%clk 0:01:37]}  Rf2+ {[%clk 0:01:13]} 40. Ke1 {[%clk 0:01:37]}  Bd4 {[%clk 0:01:14]} 41. Ra8+ {[%clk 0:01:36]}  Kg7 {[%clk 0:01:14]} 0-1


[Site "https://www.chess.com"]

[Event "Titled Tuesday Blitz April 18 Early 2023"]
[White "Milikow, Yoav"]
[Black "Alexikov, Alexander"]
[WhiteFideId "2822237"]
[BlackFideId "14103958"]
[WhiteElo "2410"]
[BlackElo "2186"]
[Result "1-0"]
[Round "01"]
[TimeControl "180+2"]
[Date "2023.04.18"]
[WhiteClock "0:00:54"]
[BlackClock "0:00:09"]

1. e4 {[%clk 0:02:54]}  c5 {[%clk 0:02:57]} 2. Nc3 {[%clk 0:02:51]}  Nc6 {[%clk 0:02:56]} 3. Bb5 {[%clk 0:02:50]}  Nd4 {[%clk 0:02:54]} 4. Bd3 {[%clk 0:02:48]}  e6 {[%clk 0:02:53]} 5. Nf3 {[%clk 0:02:48]}  Ne7 {[%clk 0:02:49]} 6. O-O {[%clk 0:02:36]}  Nec6 {[%clk 0:02:48]} 7. Nxd4 {[%clk 0:02:20]}  Nxd4 {[%clk 0:02:46]} 8. Qg4 {[%clk 0:02:19]}  h5 {[%clk 0:02:38]} 9. Qh3 {[%clk 0:02:12]}  g5 {[%clk 0:02:12]} 10. Ne2 {[%clk 0:02:01]}  Nc6 {[%clk 0:02:02]} 11. f4 {[%clk 0:01:54]}  g4 {[%clk 0:01:56]} 12. Qe3 {[%clk 0:01:52]}  d5 {[%clk 0:01:50]} 13. exd5 {[%clk 0:01:51]}  Qxd5 {[%clk 0:01:49]} 14. Be4 {[%clk 0:01:51]}  Qd6 {[%clk 0:01:47]} 15. b3 {[%clk 0:01:38]}  Bg7 {[%clk 0:01:46]} 16. c3 {[%clk 0:01:39]}  b6 {[%clk 0:01:13]} 17. Ba3 {[%clk 0:01:36]}  Qc7 {[%clk 0:01:11]} 18. d4 {[%clk 0:01:28]}  cxd4 {[%clk 0:01:06]} 19. cxd4 {[%clk 0:01:28]}  Bb7 {[%clk 0:00:57]} 20. d5 {[%clk 0:01:23]}  Nd8 {[%clk 0:00:33]} 21. d6 {[%clk 0:01:07]}  Qd7 {[%clk 0:00:31]} 22. Bxb7 {[%clk 0:01:07]}  Qxb7 {[%clk 0:00:31]} 23. Rac1 {[%clk 0:01:06]}  Nc6 {[%clk 0:00:20]} 24. d7+ {[%clk 0:01:00]}  Qxd7 {[%clk 0:00:16]} 25. Rfd1 {[%clk 0:01:00]}  Qb7 {[%clk 0:00:15]} 26. Qe4 {[%clk 0:00:55]}  Na5 {[%clk 0:00:10]} 27. Qa4+ {[%clk 0:00:55]}  b5 {[%clk 0:00:09]} 28. Qxa5 {[%clk 0:00:54]} 1-0


[Site "https://www.chess.com"]

[Event "Titled Tuesday Blitz April 18 Early 2023"]
[White "Yanayt, Eugene"]
[Black "Beerdsen, Thomas"]
[WhiteFideId "2020165"]
[BlackFideId "1030108"]
[WhiteElo "2083"]
[BlackElo "2547"]
[Result "0-1"]
[Round "01"]
[TimeControl "180+2"]
[Date "2023.04.18"]
[WhiteClock "0:01:42"]
[BlackClock "0:02:16"]

1. d4 {[%clk 0:02:58]}  Nf6 {[%clk 0:02:57]} 2. c4 {[%clk 0:02:58]}  a6 {[%clk 0:02:58]} 3. Nc3 {[%clk 0:02:57]}  b5 {[%clk 0:02:58]} 4. cxb5 {[%clk 0:02:57]}  axb5 {[%clk 0:02:59]} 5. Nxb5 {[%clk 0:02:57]}  e5 {[%clk 0:03:00]} 6. dxe5 {[%clk 0:02:56]}  Ne4 {[%clk 0:03:01]} 7. a3 {[%clk 0:02:54]}  Bb4+ {[%clk 0:02:59]} 8. axb4 {[%clk 0:02:50]}  Rxa1 {[%clk 0:03:00]} 9. Qc2 {[%clk 0:02:46]}  Nc6 {[%clk 0:02:54]} 10. Nc3 {[%clk 0:02:32]}  d5 {[%clk 0:02:46]} 11. exd6 {[%clk 0:02:26]}  Nxc3 {[%clk 0:02:46]} 12. bxc3 {[%clk 0:02:13]}  O-O {[%clk 0:02:39]} 13. Nf3 {[%clk 0:02:03]}  Qxd6 {[%clk 0:02:35]} 14. Qb2 {[%clk 0:01:56]}  Rd8 {[%clk 0:02:25]} 15. Nd2 {[%clk 0:01:55]}  Ra8 {[%clk 0:02:17]} 16. g3 {[%clk 0:01:42]}  Be6 {[%clk 0:02:16]} 0-1


[Site "https://www.chess.com"]

[Event "Titled Tuesday Blitz April 18 Early 2023"]
[White "Galchenko, Matvey"]
[Black "Matveeva, Olga"]
[WhiteFideId "24175480"]
[BlackFideId "24107018"]
[WhiteElo "2423"]
[BlackElo "2056"]
[Result "0-1"]
[Round "01"]
[TimeControl "180+2"]
[Date "2023.04.18"]
[WhiteClock "0:00:08"]
[BlackClock "0:00:14"]

1. f4 {[%clk 0:02:16]}  d5 {[%clk 0:02:58]} 2. Nf3 {[%clk 0:02:13]}  Nf6 {[%clk 0:02:58]} 3. g3 {[%clk 0:02:13]}  c5 {[%clk 0:02:57]} 4. Bg2 {[%clk 0:02:14]}  Nc6 {[%clk 0:02:57]} 5. O-O {[%clk 0:02:13]}  e6 {[%clk 0:02:56]} 6. d3 {[%clk 0:02:14]}  Be7 {[%clk 0:02:55]} 7. Nc3 {[%clk 0:02:14]}  O-O {[%clk 0:02:54]} 8. e4 {[%clk 0:02:14]}  dxe4 {[%clk 0:02:51]} 9. dxe4 {[%clk 0:02:15]}  a6 {[%clk 0:02:45]} 10. e5 {[%clk 0:02:09]}  Nd5 {[%clk 0:02:43]} 11. Ne4 {[%clk 0:02:07]}  Qc7 {[%clk 0:02:31]} 12. c3 {[%clk 0:02:06]}  b5 {[%clk 0:02:29]} 13. Qe2 {[%clk 0:02:05]}  Bb7 {[%clk 0:02:28]} 14. Be3 {[%clk 0:01:48]}  Na5 {[%clk 0:02:19]} 15. Rad1 {[%clk 0:01:41]}  Nxe3 {[%clk 0:02:08]} 16. Qxe3 {[%clk 0:01:42]}  Nc4 {[%clk 0:02:06]} 17. Qe2 {[%clk 0:01:38]}  Bxe4 {[%clk 0:01:53]} 18. Qxe4 {[%clk 0:01:36]}  Nxb2 {[%clk 0:01:53]} 19. Rd2 {[%clk 0:01:29]}  Nc4 {[%clk 0:01:52]} 20. Rd3 {[%clk 0:01:29]}  Rad8 {[%clk 0:01:51]} 21. g4 {[%clk 0:01:17]}  Rxd3 {[%clk 0:01:48]} 22. Qxd3 {[%clk 0:01:18]}  Rd8 {[%clk 0:01:48]} 23. Qe2 {[%clk 0:01:18]}  Qd7 {[%clk 0:01:46]} 24. Qe4 {[%clk 0:01:09]}  Qd3 {[%clk 0:01:41]} 25. Qb7 {[%clk 0:01:06]}  Bf8 {[%clk 0:01:34]} 26. Ng5 {[%clk 0:01:05]}  Rd7 {[%clk 0:01:30]} 27. Qe4 {[%clk 0:00:38]}  h6 {[%clk 0:01:12]} 28. Qxd3 {[%clk 0:00:28]}  Rxd3 {[%clk 0:01:10]} 29. Ne4 {[%clk 0:00:28]}  Ne3 {[%clk 0:01:07]} 30. Re1 {[%clk 0:00:24]}  c4 {[%clk 0:00:45]} 31. Bf1 {[%clk 0:00:15]}  Nxf1 {[%clk 0:00:43]} 32. Kxf1 {[%clk 0:00:16]}  a5 {[%clk 0:00:32]} 33. Rc1 {[%clk 0:00:07]}  Rf3+ {[%clk 0:00:21]} 34. Kg2 {[%clk 0:00:07]}  Rxf4 {[%clk 0:00:19]} 35. Nf2 {[%clk 0:00:08]}  g5 {[%clk 0:00:17]} 36. Rd1 {[%clk 0:00:07]}  Bc5 {[%clk 0:00:16]} 37. Rd8+ {[%clk 0:00:07]}  Kg7 {[%clk 0:00:16]} 38. Nh1 {[%clk 0:00:04]}  Rxg4+ {[%clk 0:00:16]} 39. Ng3 {[%clk 0:00:05]}  h5 {[%clk 0:00:16]} 40. Kh3 {[%clk 0:00:05]}  Kg6 {[%clk 0:00:12]} 41. Rg8+ {[%clk 0:00:05]}  Kh6 {[%clk 0:00:12]} 42. Rh8+ {[%clk 0:00:05]}  Kg7 {[%clk 0:00:13]} 43. Rxh5 {[%clk 0:00:06]}  Rh4+ {[%clk 0:00:13]} 44. Rxh4 {[%clk 0:00:06]}  gxh4 {[%clk 0:00:14]} 45. Kxh4 {[%clk 0:00:07]}  Bf2 {[%clk 0:00:12]} 46. Kg4 {[%clk 0:00:07]}  Bxg3 {[%clk 0:00:12]} 47. hxg3 {[%clk 0:00:08]}  b4 {[%clk 0:00:12]} 48. cxb4 {[%clk 0:00:08]}  axb4 {[%clk 0:00:13]} 49. Kf4 {[%clk 0:00:08]}  b3 {[%clk 0:00:13]} 50. axb3 {[%clk 0:00:08]}  cxb3 {[%clk 0:00:14]} 0-1


[Site "https://www.chess.com"]